Workbook

Sheet Buchungen
A1: Einnahmen & Ausgaben – Buchungen
A2: Trage nur hier deine Buchungen ein. In ‘Übersicht’ siehst du Monatswerte und Auswertungen.
A4: Datum | B4: Beleg-Nr. | C4: Beschreibung | D4: Kategorie | E4: Zahlungsart | F4: Einnahmen (€) | G4: Ausgaben (€) | H4: Notiz | I4: MonatNr | J4: Jahr | L4: Listen (bearbeitbar)
A5: 2026-01-05 | B5: R-1001 | C5: Beratungsleistung Januar | D5: Umsatz | E5: Überweisung | F5: € 2,500.00 | H5: Kunde A | I5: =IF(A5="","",MONTH(A5)) -> 1 | J5: =IF(A5="","",YEAR(A5)) -> 2026
A6: 2026-01-07 | B6: B-2001 | C6: Miete Büro | D6: Miete | E6: Lastschrift | G6: € 850.00 | I6: 1 | J6: 2026 | L6: Umsatz | M6: Bar
A7: 2026-01-10 | B7: B-2002 | C7: Internet & Mobilfunk | D7: Telefon/Internet | E7: Lastschrift | G7: € 79.99 | H7: Telekom | I7: 1 | J7: 2026 | L7: Sonstige Einnahmen | M7: Karte
A8: 2026-01-12 | B8: B-2003 | C8: Office-Material | D8: Bürobedarf | E8: Karte | G8: € 34.50 | H8: Papier, Stifte | I8: 1 | J8: 2026 | L8: Miete | M8: Überweisung
A9: 2026-01-15 | B9: R-1002 | C9: Online-Kurs Verkauf | D9: Sonstige Einnahmen | E9: PayPal | F9: € 199.00 | I9: 1 | J9: 2026 | L9: Versicherungen | M9: PayPal
A10: 2026-02-02 | B10: B-2101 | C10: Software-Abo (CRM) | D10: Software/Abos | E10: Karte | G10: € 49.00 | I10: 2 | J10: 2026 | L10: Telefon/Internet | M10: Lastschrift
A11: 2026-02-05 | B11: R-1003 | C11: Projekt Meilenstein | D11: Umsatz | E11: Überweisung | F11: € 1,800.00 | H11: Kunde B | I11: 2 | J11: 2026 | L11: Bürobedarf
A12: 2026-02-08 | B12: B-2102 | C12: Marketing (Ads) | D12: Marketing | E12: Karte | G12: € 120.00 | I12: 2 | J12: 2026 | L12: Software/Abos
A13: 2026-02-14 | B13: B-2103 | C13: Kraftstoff | D13: Fahrtkosten | E13: Karte | G13: € 62.40 | I13: 2 | J13: 2026 | L13: Marketing
A14: 2026-03-03 | B14: R-1004 | C14: Wartungsvertrag | D14: Umsatz | E14: Überweisung | F14: € 950.00 | I14: 3 | J14: 2026 | L14: Fahrtkosten
A15: 2026-03-05 | B15: B-2201 | C15: Versicherung (Betrieb) | D15: Versicherungen | E15: Lastschrift | G15: € 145.30 | I15: 3 | J15: 2026 | L15: Bewirtung
A16: 2026-03-11 | B16: B-2202 | C16: Bewirtung Kundentermin | D16: Bewirtung | E16: Karte | G16: € 58.70 | I16: 3 | J16: 2026 | L16: Steuerberater
A17: 2026-04-02 | B17: R-1005 | C17: Workshop vor Ort | D17: Umsatz | E17: Überweisung | F17: € 1,200.00 | I17: 4 | J17: 2026 | L17: Steuern
A18: 2026-04-06 | B18: B-2301 | C18: Steuerberater | D18: Steuerberater | E18: Überweisung | G18: € 300.00 | H18: Q1 | I18: 4 | J18: 2026 | L18: Bankgebühren
A19: 2026-04-12 | B19: B-2302 | C19: Bankgebühren | D19: Bankgebühren | E19: Lastschrift | G19: € 12.90 | I19: 4 | J19: 2026 | L19: Sonstiges
A20: 2026-05-04 | B20: R-1006 | C20: Lizenzverkauf | D20: Sonstige Einnahmen | E20: PayPal | F20: € 450.00 | I20: 5 | J20: 2026
A21: 2026-05-10 | B21: B-2401 | C21: Marketing (Design) | D21: Marketing | E21: Überweisung | G21: € 220.00 | I21: 5 | J21: 2026
A22: 2026-05-20 | B22: B-2402 | C22: Sonstiger Aufwand | D22: Sonstiges | E22: Bar | G22: € 25.00 | I22: 5 | J22: 2026
A23: 2026-06-01 | B23: R-1007 | C23: Monatspauschale | D23: Umsatz | E23: Überweisung | F23: € 1,600.00 | I23: 6 | J23: 2026
A24: 2026-06-07 | B24: B-2501 | C24: Software-Abo (Hosting) | D24: Software/Abos | E24: Karte | G24: € 15.99 | I24: 6 | J24: 2026
A25: 2026-07-15 | B25: R-1008 | C25: Beratung | D25: Umsatz | E25: Überweisung | F25: € 1,300.00 | I25: 7 | J25: 2026
A26: 2026-07-18 | B26: B-2601 | C26: Fahrtkosten (Bahn) | D26: Fahrtkosten | E26: Karte | G26: € 89.90 | H26: DB | I26: 7 | J26: 2026
A27: 2026-08-05 | B27: R-1009 | C27: Support Paket | D27: Umsatz | E27: Überweisung | F27: € 700.00 | I27: 8 | J27: 2026
A28: 2026-08-09 | B28: B-2701 | C28: Steuern (Vorauszahlung) | D28: Steuern | E28: Überweisung | G28: € 500.00 | I28: 8 | J28: 2026
A29: 2026-09-03 | B29: R-1010 | C29: Kleinauftrag | D29: Umsatz | E29: Karte | F29: € 250.00 | I29: 9 | J29: 2026
A30: 2026-09-14 | B30: B-2801 | C30: Bürobedarf | D30: Bürobedarf | E30: Karte | G30: € 18.60 | I30: 9 | J30: 2026
A31: 2026-10-02 | B31: R-1011 | C31: Schulung | D31: Umsatz | E31: Überweisung | F31: € 900.00 | I31: 10 | J31: 2026
A32: 2026-10-11 | B32: B-2901 | C32: Versicherung (Haftpflicht) | D32: Versicherungen | E32: Lastschrift | G32: € 99.00 | I32: 10 | J32: 2026
A33: 2026-11-06 | B33: R-1012 | C33: Beratung | D33: Umsatz | E33: Überweisung | F33: € 1,100.00 | I33: 11 | J33: 2026
A34: 2026-11-22 | B34: B-3001 | C34: Bewirtung | D34: Bewirtung | E34: Karte | G34: € 41.20 | I34: 11 | J34: 2026
A35: 2026-12-03 | B35: R-1013 | C35: Jahresabschluss Paket | D35: Umsatz | E35: Überweisung | F35: € 2,000.00 | I35: 12 | J35: 2026
A36: 2026-12-18 | B36: B-3101 | C36: Steuerberater (Jahresabschluss) | D36: Steuerberater | E36: Überweisung | G36: € 650.00 | I36: 12 | J36: 2026
I37: =IF(A37="","",MONTH(A37)) ->  | J37: =IF(A37="","",YEAR(A37)) -> 
I69: =IF(A69="","",MONTH(A69)) ->  | J69: =IF(A69="","",YEAR(A69)) -> 
I101: =IF(A101="","",MONTH(A101)) ->  | J101: =IF(A101="","",YEAR(A101)) -> 
I133: =IF(A133="","",MONTH(A133)) ->  | J133: =IF(A133="","",YEAR(A133)) -> 
I165: =IF(A165="","",MONTH(A165)) ->  | J165: =IF(A165="","",YEAR(A165)) -> 
I197: =IF(A197="","",MONTH(A197)) ->  | J197: =IF(A197="","",YEAR(A197)) -> 

Sheet Übersicht
A1: Übersicht – Monatswerte
A3: Jahr | B3: 2026
A5: Gesamteinnahmen | C5: Gesamtausgaben | E5: Saldo
A6: =SUMIFS(tblBuchungen[Einnahmen (€)],tblBuchungen[Jahr],$B$3) -> € 14,949.00 | C6: =SUMIFS(tblBuchungen[Ausgaben (€)],tblBuchungen[Jahr],$B$3) -> € 3,372.48 | E6: =SUMIFS(tblBuchungen[Einnahmen (€)],tblBuchungen[Jahr],$B$3)-SUMIFS(tblBuchungen[Ausgaben (€)],tblBuchungen[Jahr],$B$3) -> € 11,576.52
A8: Monat | B8: Einnahmen (€) | C8: Ausgaben (€) | D8: Saldo (€)
A9: Januar | B9: =SUMIFS(tblBuchungen[Einnahmen (€)],tblBuchungen[Jahr],$B$3,tblBuchungen[MonatNr],1) -> € 2,699.00 | C9: =SUMIFS(tblBuchungen[Ausgaben (€)],tblBuchungen[Jahr],$B$3,tblBuchungen[MonatNr],1) -> € 964.49 | D9: =B9-C9 -> € 1,734.51
A10: Februar | B10: =SUMIFS(tblBuchungen[Einnahmen (€)],tblBuchungen[Jahr],$B$3,tblBuchungen[MonatNr],2) -> € 1,800.00 | C10: =SUMIFS(tblBuchungen[Ausgaben (€)],tblBuchungen[Jahr],$B$3,tblBuchungen[MonatNr],2) -> € 231.40 | D10: € 1,568.60
A11: März | B11: =SUMIFS(tblBuchungen[Einnahmen (€)],tblBuchungen[Jahr],$B$3,tblBuchungen[MonatNr],3) -> € 950.00 | C11: =SUMIFS(tblBuchungen[Ausgaben (€)],tblBuchungen[Jahr],$B$3,tblBuchungen[MonatNr],3) -> € 204.00 | D11: € 746.00
A12: April | B12: =SUMIFS(tblBuchungen[Einnahmen (€)],tblBuchungen[Jahr],$B$3,tblBuchungen[MonatNr],4) -> € 1,200.00 | C12: =SUMIFS(tblBuchungen[Ausgaben (€)],tblBuchungen[Jahr],$B$3,tblBuchungen[MonatNr],4) -> € 312.90 | D12: € 887.10
A13: Mai | B13: =SUMIFS(tblBuchungen[Einnahmen (€)],tblBuchungen[Jahr],$B$3,tblBuchungen[MonatNr],5) -> € 450.00 | C13: =SUMIFS(tblBuchungen[Ausgaben (€)],tblBuchungen[Jahr],$B$3,tblBuchungen[MonatNr],5) -> € 245.00 | D13: € 205.00
A14: Juni | B14: =SUMIFS(tblBuchungen[Einnahmen (€)],tblBuchungen[Jahr],$B$3,tblBuchungen[MonatNr],6) -> € 1,600.00 | C14: =SUMIFS(tblBuchungen[Ausgaben (€)],tblBuchungen[Jahr],$B$3,tblBuchungen[MonatNr],6) -> € 15.99 | D14: € 1,584.01
A15: Juli | B15: =SUMIFS(tblBuchungen[Einnahmen (€)],tblBuchungen[Jahr],$B$3,tblBuchungen[MonatNr],7) -> € 1,300.00 | C15: =SUMIFS(tblBuchungen[Ausgaben (€)],tblBuchungen[Jahr],$B$3,tblBuchungen[MonatNr],7) -> € 89.90 | D15: € 1,210.10
A16: August | B16: =SUMIFS(tblBuchungen[Einnahmen (€)],tblBuchungen[Jahr],$B$3,tblBuchungen[MonatNr],8) -> € 700.00 | C16: =SUMIFS(tblBuchungen[Ausgaben (€)],tblBuchungen[Jahr],$B$3,tblBuchungen[MonatNr],8) -> € 500.00 | D16: € 200.00
A17: September | B17: =SUMIFS(tblBuchungen[Einnahmen (€)],tblBuchungen[Jahr],$B$3,tblBuchungen[MonatNr],9) -> € 250.00 | C17: =SUMIFS(tblBuchungen[Ausgaben (€)],tblBuchungen[Jahr],$B$3,tblBuchungen[MonatNr],9) -> € 18.60 | D17: € 231.40
A18: Oktober | B18: =SUMIFS(tblBuchungen[Einnahmen (€)],tblBuchungen[Jahr],$B$3,tblBuchungen[MonatNr],10) -> € 900.00 | C18: =SUMIFS(tblBuchungen[Ausgaben (€)],tblBuchungen[Jahr],$B$3,tblBuchungen[MonatNr],10) -> € 99.00 | D18: € 801.00
A19: November | B19: =SUMIFS(tblBuchungen[Einnahmen (€)],tblBuchungen[Jahr],$B$3,tblBuchungen[MonatNr],11) -> € 1,100.00 | C19: =SUMIFS(tblBuchungen[Ausgaben (€)],tblBuchungen[Jahr],$B$3,tblBuchungen[MonatNr],11) -> € 41.20 | D19: € 1,058.80
A20: Dezember | B20: =SUMIFS(tblBuchungen[Einnahmen (€)],tblBuchungen[Jahr],$B$3,tblBuchungen[MonatNr],12) -> € 2,000.00 | C20: =SUMIFS(tblBuchungen[Ausgaben (€)],tblBuchungen[Jahr],$B$3,tblBuchungen[MonatNr],12) -> € 650.00 | D20: € 1,350.00
A21: Summe | B21: =SUM(B9:B20) -> € 14,949.00 | C21: =SUM(C9:C20) -> € 3,372.48 | D21: =SUM(D9:D20) -> € 11,576.52
A23: Ausgaben nach Kategorie (Jahr)
A24: Kategorie | B24: Ausgaben (€) | C24: Anteil
A25: Umsatz | B25: =SUMIFS(tblBuchungen[Ausgaben (€)],tblBuchungen[Jahr],$B$3,tblBuchungen[Kategorie],A25) -> € 0.00 | C25: =IF($C$6=0,0,B25/$C$6) -> 0.0%
A26: Sonstige Einnahmen | B26: =SUMIFS(tblBuchungen[Ausgaben (€)],tblBuchungen[Jahr],$B$3,tblBuchungen[Kategorie],A26) -> € 0.00 | C26: 0.0%
A27: Miete | B27: =SUMIFS(tblBuchungen[Ausgaben (€)],tblBuchungen[Jahr],$B$3,tblBuchungen[Kategorie],A27) -> € 850.00 | C27: 25.2%
A28: Versicherungen | B28: =SUMIFS(tblBuchungen[Ausgaben (€)],tblBuchungen[Jahr],$B$3,tblBuchungen[Kategorie],A28) -> € 244.30 | C28: 7.2%
A29: Telefon/Internet | B29: =SUMIFS(tblBuchungen[Ausgaben (€)],tblBuchungen[Jahr],$B$3,tblBuchungen[Kategorie],A29) -> € 79.99 | C29: 2.4%
A30: Bürobedarf | B30: =SUMIFS(tblBuchungen[Ausgaben (€)],tblBuchungen[Jahr],$B$3,tblBuchungen[Kategorie],A30) -> € 53.10 | C30: 1.6%
A31: Software/Abos | B31: =SUMIFS(tblBuchungen[Ausgaben (€)],tblBuchungen[Jahr],$B$3,tblBuchungen[Kategorie],A31) -> € 64.99 | C31: 1.9%
A32: Marketing | B32: =SUMIFS(tblBuchungen[Ausgaben (€)],tblBuchungen[Jahr],$B$3,tblBuchungen[Kategorie],A32) -> € 340.00 | C32: 10.1%
A33: Fahrtkosten | B33: =SUMIFS(tblBuchungen[Ausgaben (€)],tblBuchungen[Jahr],$B$3,tblBuchungen[Kategorie],A33) -> € 152.30 | C33: 4.5%
A34: Bewirtung | B34: =SUMIFS(tblBuchungen[Ausgaben (€)],tblBuchungen[Jahr],$B$3,tblBuchungen[Kategorie],A34) -> € 99.90 | C34: 3.0%
A35: Steuerberater | B35: =SUMIFS(tblBuchungen[Ausgaben (€)],tblBuchungen[Jahr],$B$3,tblBuchungen[Kategorie],A35) -> € 950.00 | C35: 28.2%
A36: Steuern | B36: =SUMIFS(tblBuchungen[Ausgaben (€)],tblBuchungen[Jahr],$B$3,tblBuchungen[Kategorie],A36) -> € 500.00 | C36: 14.8%
A37: Bankgebühren | B37: =SUMIFS(tblBuchungen[Ausgaben (€)],tblBuchungen[Jahr],$B$3,tblBuchungen[Kategorie],A37) -> € 12.90 | C37: 0.4%
A38: Sonstiges | B38: =SUMIFS(tblBuchungen[Ausgaben (€)],tblBuchungen[Jahr],$B$3,tblBuchungen[Kategorie],A38) -> € 25.00 | C38: 0.7%
